Cogmind - Beta 15 *** ADVENTURER MODE // 2025.05.23 @ 13:00:34 Player: DeepestRoots Result: Smashed by cave-in Performance ------------- Evolutions (0) 0 Regions Visited (1) 200 Robots Destroyed (30) 150 Value Destroyed (583) 583 Prototype IDs (0) 0 Alien Tech Used (0) 0 Bonus (0) 0 TOTAL SCORE: 933 Bonus ------- None Cogmind --------- Core Integrity 0/250 Matter 300/300 Energy 100/100 System Corruption 4% Temperature Cool (0) Movement Walking (120) Location -10/Materials Parts ------- > --- POWER (1) -------- (None) > --- PROPULSION (2) --- Aluminum Leg > --- UTILITY (2) ------ Seismic Detector > --- WEAPON (2) ------- (None) > --- INVENTORY (5) ---- Ion Engine Wheel Medium Matter Pod (100) EM Pulse Gun Light Assault Rifle Peak State ------------ > --- POWER ------------ Light Ion Engine > --- PROPULSION ------- Aluminum Leg Aluminum Leg > --- UTILITY ---------- Improved Terrain Scanner Seismic Detector > --- WEAPON ----------- EM Pulse Gun Medium Laser > --- INVENTORY -------- Ion Engine Medium Matter Pod Light Assault Rifle [Rating: 9] Favorites ----------- Power Light Ion Engine Engine Light Ion Engine Propulsion Aluminum Leg Treads Light Treads Leg Aluminum Leg Wheel Wheel Utility Seismic Detector Device Seismic Detector Processor Terrain Scan Processor Weapon Medium Laser Energy Gun Medium Laser Launcher Grenade Launcher Build | -11 -10 ------- Run | Yrd Mat Slots Evolved . | . . Power . | . . Propulsion . | . . Utility . | . . Weapon . | . . Parts Attached 16 | 12 4 Power 1 | 1 . Engine 1 | 1 . Core . | . . Reactor . | . . Propulsion 5 | 5 . Treads 1 | 1 . Leg 2 | 2 . Wheel 2 | 2 . Hover . | . . Flight . | . . Utility 6 | 4 2 Device 5 | 4 1 Storage . | . . Processor 1 | . 1 Hackware . | . . Protection . | . . Artifact . | . . Weapon 4 | 2 2 Energy Gun 2 | 2 . Energy Cannon . | . . Ballistic Gun . | . . Ballistic Cannon . | . . Launcher 2 | . 2 Special Weapon . | . . Impact Weapon . | . . Slashing Weapon . | . . Piercing Weapon . | . . Special Melee Weapon . | . . Unidentified Prototypes . | . . Parts Lost 5 | . 5 Power 1 | . 1 Propulsion 1 | . 1 Utility 1 | . 1 Weapon 2 | . 2 Highest Loss Streak 3 | . 3 To Critical Strikes . | . . Average Backups 4 | 4 5 Power . | . 1 Propulsion . | . 1 Utility 1 | 1 1 Weapon . | . 1 Tool/Special . | . . Unused Backups 3 | . 3 Power 1 | . 1 Propulsion . | . . Utility 1 | . 1 Weapon 1 | . 1 Tool/Special . | . . Average Slot Usage (%) 91 | . 91 Engine 11 | . 11 Leg 28 | . 28 Device 25 | . 25 Energy Gun 14 | . 14 Launcher 10 | . 10 Peak Build Rating 9 | 9 9 Average Rating 8 | 8 7 On Entrance 4 | . 9 Naked Turns . | . . Heaviest Build 10 | 9 10 Greatest Support 20 | 20 20 Greatest Overweight (x) 2 | 2 . Average Overweight (x) . | . . Largest Inventory Capacity 5 | 5 5 Average Capacity 5 | 5 5 Most Carried 5 | 5 5 Average Carried 4 | 4 5 Final Capacity 5 | 5 5 Final Carried 5 | 5 5 Class Distribution -------------------- 100% | Mutant Dominant Class ---------------- Mutant | -10/Materials Resources | -11 -10 ----------- Run | Yrd Mat Matter Collected 623 | 443 180 Remotely . | . . Salvage Created 807 | 302 505 Parts 63 | 24 39 Haulers Intercepted . | . . Recyclers Shooed . | . . Parts Field Recycled . | . . Retrieved Matter . | . . Parts Self-Destructed . | . . Prevented . | . . Kills | -11 -10 ------- Run | Yrd Mat Combat Hostiles Destroyed 8 | . 8 Guns 5 | . 5 AOE 3 | . 3 Classes Destroyed 6 | 3 3 Worker 5 | 3 2 Builder 4 | . 4 Tunneler 9 | 9 . Recycler 2 | 1 1 Watcher 2 | . 2 Grunt 8 | . 8 Best Kill Streak 3 | 2 3 Combat Bots Only 2 | . 2 Max Kills in Single Turn 2 | 2 2 Gunslinging . | . . Exploded 1 | . 1 Melee . | . . Uniques/NPCs Destroyed . | . . Combat | -11 -10 -------- Run | Yrd Mat Hostile Shots Fired 26 | . 26 Missed 7 | . 7 Hits 19 | . 19 Projectile 19 | . 19 Damage Taken 799 | . 799 Core 285 | . 285 Absorbed by Shields . | . . Ignored by Resistances 89 | . 89 Core Remaining (%) 100 | 100 . Volleys Fired 284 | 218 66 Largest 2 | 2 2 Hottest 90 | 90 90 Shots Fired 348 | 266 82 Gun 337 | 266 71 Cannon . | . . Launcher 11 | . 11 Special . | . . Kinetic . | . . Thermal 183 | 140 43 Explosive 11 | . 11 Electromagnetic 154 | 126 28 Robot Hit Streak 22 | 6 22 Robot Miss Streak 1 | 1 1 Penetration Max . | . . Secondary Targets . | . . Shots Hit Robots 62 | 24 38 Core Hits 41 | 15 26 Critical Kills . | . . Critical Parts Destroyed . | . . Critical Strikes 7 | 2 5 Burn 5 | 2 3 Corrupt 2 | . 2 Melee Attacks . | . . Impact . | . . Slashing . | . . Piercing . | . . Sneak Attacks . | . . Combat Hostiles . | . . Follow-up Attacks . | . . Damage Inflicted 1684 | 553 1131 Guns 900 | 422 478 Cannons . | . . Explosions 762 | 109 653 Melee . | . . Ramming 22 | 22 . Kinetic . | . . Thermal 684 | 410 274 Explosive 557 | . 557 Electromagnetic 421 | 121 300 Impact . | . . Slashing . | . . Piercing . | . . Highest Corruption . | . . Average Corruption . | . . Corruption Purged . | . . Corruption Blocked . | . . Overload Shots . | . . Overflow Damage 36 | . 36 Projectiles . | . . Explosions 36 | . 36 Melee . | . . Knockbacks . | . . Impact . | . . Kinetic . | . . Secondary . | . . Self-Inflicted Damage 127 | . 127 Shots 4 | . 4 Rammed . | . . Targets Rammed 7 | 7 . Kicked 7 | 7 . Crushed . | . . Highest Temperature 300 | 300 282 Average Temperature 99 | 110 67 Received Heat Transfer 147 | . 147 Effects 2 | 2 . Interference 1 | 1 . Short Circuit 1 | 1 . Siege Activations . | . . Martial Activations . | . . Shielding Activations . | . . Robots Disrupted 1 | . 1 Combat Hostiles 1 | . 1 Robots Corrupted . | . . Combat Hostiles . | . . Parts Fried 1 | . 1 Impact Corruptions . | . . Robots Melted . | . . Combat Hostiles . | . . Parts Melted 5 | 2 3 Heat Transferred 1976 | 1186 790 Parts Sabotaged . | . . Parts Stolen . | . . Parts Stripped . | . . Power Chain Reactions 3 | 3 . Alert | -11 -10 ------- Run | Yrd Mat Maximum Alert Level . | . . Low Security (%) 100 | 100 100 Level 1 . | . . Level 2 . | . . Level 3 . | . . Level 4 . | . . Level 5 . | . . High Security . | . . Max Security . | . . Peak Influence 95 | 10 95 Initial . | . . Average . | . 10 Influence Increases 554 | 65 489 Destroy 0b10 Robot/C 160 | . 160 Destroy 0b10 Robot/NC 110 | 65 45 Destroy Leader 44 | . 44 Successful Hack 1 | . 1 Disable Machine 126 | . 126 Destroy Structure 113 | . 113 Influence Decreases 554 | 65 489 Time Decay 538 | 65 473 Lost Part 16 | . 16 Squads Dispatched 1 | . 1 Investigation 1 | . 1 Extermination . | . . Reinforcement . | . . Assault . | . . Garrison . | . . Intercept . | . . Searches Triggered . | . . Construction Impeded . | . . Haulers Reinforced . | . . Active Scanning Responses . | . . Cargo Convoy Interrupts . | . . Stealth | -11 -10 --------- Run | Yrd Mat Distress Signals 1 | . 1 Communications Jammed . | . . Distress Signals . | . . Times Spotted 13 | . 13 Peak Tracking Total 3 | . 3 Tactical Retreats . | . . Traps | -11 -10 ------- Run | Yrd Mat Traps Triggered 1 | . 1 Indirectly . | . . Trap Hack Attempts . | . . Triggered . | . . Disarmed . | . . Reprogrammed . | . . Reused . | . . Traps Extracted . | . . Installed . | . . Triggered . | . . Machines | -11 -10 ---------- Run | Yrd Mat Machines Disabled 14 | . 14 Max in Single Turn 5 | . 5 Machines Repaired . | . . Machines Dismantled . | . . Machines Sabotaged . | . . Overloaded Fab Kills . | . . Hacking | -11 -10 --------- Run | Yrd Mat Machines Accessed 1 | . 1 Terminals 1 | . 1 Fabricators . | . . Repair Stations . | . . Recycling Units . | . . Scanalyzers . | . . Garrison Access . | . . Total Hacks 1 | . 1 Successful 1 | . 1 Failed . | . . Catastrophic . | . . Database Lockouts . | . . Manual . | . . Terminals 1 | . 1 Fabricators . | . . Repair Stations . | . . Recycling Units . | . . Scanalyzers . | . . Garrison Access . | . . Terminal Hacks 1 | . 1 Record 1 | . 1 Fabricator Hacks . | . . Repair Station Hacks . | . . Recycling Unit Hacks . | . . Scanalyzer . | . . Garrison Access Hacks . | . . Unauthorized Hacks . | . . Terminals . | . . Fabricators . | . . Repair Stations . | . . Recycling Units . | . . Scanalyzers . | . . Garrison Access . | . . Data Cores Recovered . | . . Used . | . . Hacking Detections . | . . Full Trace Events . | . . Feedback Events . | . . Feedback Blocked . | . . Robot Schematics Acquired . | . . Robots Built . | . . Authchips . | . . Time . | . . Total Robot Build Rating . | . . Part Schematics Acquired . | . . Parts Built . | . . Authchips . | . . Time . | . . Total Part Build Rating . | . . Parts Repaired . | . . Time . | . . Parts Recycled . | . . Recycled Matter . | . . Retrieved Matter . | . . Retrieved Components . | . . Parts Scanalyzed . | . . Part Schematics Acquired . | . . Parts Damaged . | . . Bothacking | -11 -10 ------------ Run | Yrd Mat Used RIF Installer . | . . Robots Hacked . | . . Non-combat . | . . Combat . | . . Robot Hacks Applied . | . . Relay Couplers Released . | . . Fabnet Peak Effective % . | . . Robots Rewired . | . . Allies Hacked . | . . Hacks Repelled . | . . Allies | -11 -10 -------- Run | Yrd Mat Total Allies . | . . Largest Group . | . . Highest-Rated Group . | . . Highest-Rated Ally . | . . Total Orders . | . . Ally Attacks . | . . Total Damage . | . . Kills . | . . Allies Corrupted . | . . Allies Melted . | . . Intel | -11 -10 ------- Run | Yrd Mat Active Infowar (turns) 63208 | 60462 2746 Terrain 41089 | 40002 1087 Structural 627 | . 627 Seismic 63041 | 60295 2746 Robot Analysis Total . | . . Derelict Logs Recovered . | . . Drone Launches . | . . Drone Recoveries . | . . Exploration | -11 -10 ------------- Run | Yrd Mat Turns Passed 78689 | 75944 2745 Spaces Moved 5615 | 4716 899 Core 176 | 176 . Treads 67 | 67 . Legs 5187 | 4288 899 Wheels 185 | 185 . Hover . | . . Flight . | . . Fastest Speed 50 | 50 120 Average Speed 117 | 116 120 Slowest Speed 160 | 160 120 Overloaded Moves . | . . Propulsion Burnouts . | . . Robots Hopped . | . . Potential Cave-ins 10 | . 10 Cave-ins Triggered 2 | . 2 Exploration Rate (%) 93 | 98 88 Regions Visited 1 Branch Regions . Pre-discovered Areas . | . . Known Exits Taken . | . . Unknown Exits Taken 1 | 1 . Scrap Searched . | . . Spaces Dug 8 | . 8 Terrain Destroyed 123 | 9 114 Melee . | . . Projectile . | . . AOE 123 | 9 114 Terrain Rammed . | . . Walls Destroyed . | . . Machines Disabled . | . . Actions | -11 -10 --------- Run | Yrd Mat Total 77353 | 74871 2482 Wait 71409 | 69902 1507 Move 5614 | 4715 899 Hop . | . . Pick Up 5 | 4 1 Fast Attach 8 | 8 . Attach . | . . Detach . | . . Swap 22 | 15 7 Drop 4 | 2 2 Fire 284 | 218 66 Melee . | . . Ram . | . . Kick 7 | 7 . Crush . | . . Escape Stasis . | . . Rewire . | . . Trap . | . . Miscellaneous . | . . Route ------- -11/Scrapyard -10/Materials (discovered 5 exits: [*Mat x3] / [*Min x2]) History --------- Turn | Location | Event 24 | -11/Scrapyard | Discovered new exit (range 15) 75945 | -11/Scrapyard | Entered Materials 75946 | -10/Materials | Build established: Mutant 75946 | -10/Materials | Met a group of wandering Federalists 76029 | -10/Materials | Discovered new exit (range 8) 76067 | -10/Materials | Discovered new exit (range 3) 77201 | -10/Materials | Discovered new exit (range 11) 77282 | -10/Materials | Discovered new exit (range 8) 77403 | -10/Materials | Discovered new exit (range 12) 78146 | -10/Materials | Crushed by falling debris 78146 | -10/Materials | Core integrity fell below 50% 78146 | -10/Materials | Core integrity fell below 20% 78177 | -10/Materials | Lost 3 parts (1p1u1w) 78691 | -10/Materials | Crushed by falling debris 78691 | -10/Materials | Smashed by cave-in Last Messages --------------- 78230_ U-05 Engineer lays Concrete. 78233_ U-05 Engineer builds a Wall. 78237_ U-05 Engineer lays Concrete. 78286_ The unstable cave ceiling collapses. 78436_ U-05 Engineer lays Concrete. 78437_ U-05 Engineer builds a Wall. 78442_ U-05 Engineer lays Concrete. 78452_ U-05 Engineer builds a Wall. 78470_ U-05 Engineer lays Concrete. 78471_ U-05 Engineer builds a Wall. 78502_ U-05 Engineer lays Concrete. 78503_ U-05 Engineer builds a Wall. 78515_ U-05 Engineer lays Concrete. 78518_ U-05 Engineer builds a Wall. 78691_ The unstable cave ceiling collapses. 78691_ Crushed by falling debris. 78691_ Grenade Launcher destroyed. 78691_ System corrupted by crushing effect (+1). 78691_ Aluminum Leg destroyed. 78691_ System corrupted by crushing effect (+3). Map ----- +----------------------------------------------------+ | # # "" != ###T## ### | | ####### ## | | ####### # | | #== ! # ###################### ### | | #== # # """" ## # # | | #== + " # """" ## """ """ # # | | # # # """" ## """ """ # # | | ?###### # ## """ """ # # | | ?##### #^ ! ## + / | | ???### ##+######### # # | | ???### ####### # # | | ???### + # # | | ???### ################# ### | | ???### ####+################## ### | | ???### = # ####?#??#???## # | | ?#?## % # " ]##?###?#?#??## # ! | | ??### ##+#### # " ##??#?#?#???## # ! | | ???## # ## # """ !###?##??????## # | | ???## #" ## # #??###???#??## + | | ???## #T ## # """ ##?####?#???## # [ | | ???## #" ## # """ #?????#?#???## ### | | ???## # ## # """ #??#???#????##^ ^ | | ???## # = ## # #?##??#?????## | | ???##+#######+############???????#### | | ???## ##########??#??????######/## | | ???## # @####?#????????## = # | | ???## ###### ###?????????## # | | ???## # ###?????????## # | | ???## # ###?????????## # | | ???## + ###?????????## # | | ???## # ###?????????## # | | ???## # ###?????????######### | | ???######## # ###?????????######### | | ???###### ##+#######?????????????????# | | ???????## ##?????????????????# | | ???????## T ##?????????????????# | | ???????## ##?????????????????## | | ????##### ##### < ##??????????????????? | | ????#######+####### ##??????????????????? | | ????## ######??????????????????? | | ????## """"" ######??????????????????? | | ????## """"" ##??????????????????????? | | ????## """"" ##??????????????????????? | | ????## ##??????????????????????? | | ????################??????????????????????? | | | | | | | | | | | +----------------------------------------------------+ Best States ------------- Heat Dissipation 25 Energy Generation 10 Energy Capacity 125 Matter Stores 300 Matter Capacity 300 Sight Range 16 Terrain Scan Range 16 Terrain Scan Density 85 Resistance: KI 20 Resistance: TH 20 Resistance: EX 20 Resistance: EM 20 Resistance: I 20 Resistance: S 20 Resistance: P 20 Evasion (%) 55 Recoil Reduction 1 Offensive Hacking 10 Item Schematics ----------------- None Robot Schematics ------------------ None Fabricated ------------ Nothing Repaired ---------- Nothing Alien Tech Used ----------------- None Achievements -------------- None Challenges ------------ None Game ------ Seed SmartbombSalvagingRay Manual? 1 Play Time 01:59:44 Cumulative 1175.0 hours Start 2025.05.23 @ 08:21:36 End 2025.05.23 @ 13:00:34 Sessions 2 Manual Loads 0 Difficulty Adventurer Special Mode None Game No. 94 Rogue 22 Adventurer 58 Explorer 14 Win Type - Total 57 Types 27/5/10/1/3/2/1/3/2/3 Lore% 90 Gallery% 94 Achievement% 82 Wizard Run 0 Options --------- Layout 2 ASCII 1 Keyboard 1 Movement Numpad Keybinds 0 Fullscreen 2 Font 24/Smallcaps Map View 25x22 Zoom Use 90% Tactical HUD 1 Map Filters NONE Filters NONE Steam 0 RUN: f74ed5b2-583b-4cf8-bded-005421a496af